bitfinex-derivatives/quotes_BNBF0:USTF0_20250302
["timestamp","ask_amount","ask_price","bid_price","bid_amount"]
[1740889897867,1.2208779,609.12,608.78,0.3285259]
[1740889898067,1.64224438,609.11,608.78,0.3285259]
[1740889898272,1.2208779,609.1,608.78,0.3285259]
[1740889898877,1.2208779,609.09,608.78,0.3285259]
[1740889899576,1.2208779,609.14,608.78,0.3285259]
[1740889900076,1.2208779,609.14,608.31,1.21792817]
[1740889900271,1.2208779,609.13,608.31,1.21792817]
[1740889900770,1.71508834,609.15,608.31,1.21792817]
[1740889900771,1.2208779,609.12,608.31,1.21792817]
[1740889900977,2.9348779,609.12,608.31,1.21792817]
[1740889901475,1.2208779,609.11,608.31,1.21792817]
[1740889901877,1.2208779,609.1,608.31,1.21792817]
[1740889902472,1.2208779,609.09,608.31,1.21792817]
[1740889903479,1.2208779,609.09,608.17,1.21792817]
[1740889903873,1.2208779,609.08,608.17,1.21792817]
[1740889904474,1.2208779,609.07,608.17,1.21792817]
[1740889905181,1.2208779,609.06,608.17,1.21792817]
[1740889905373,2.93622691,609.06,608.17,1.21792817]
[1740889905576,2.93622691,609.06,608.01,1.21792817]
[1740889905982,1.71534901,609.06,608.01,1.21792817]
[1740889907587,1.71534901,609.06,607.97,1.21792817]
[1740889909487,1.71534901,609.06,607.96,1.21792817]
[1740889910883,1.2208779,609.07,607.96,1.21792817]
[1740889911486,1.71555336,609.06,607.96,1.21792817]
[1740889913087,1.71555336,609.06,607.93,1.21792817]
[1740889914089,1.2208779,609.07,607.93,1.21792817]
[1740889914487,1.71570843,609.05,607.93,1.21792817]
[1740889915493,1.71570843,609.05,607.85,1.21792817]
[1740889917091,1.2208779,609.08,607.85,1.21792817]
[1740889917292,1.71577892,609.04,607.85,1.21792817]
[1740889917594,1.71577892,609.04,607.81,1.21792817]
[1740889920191,2.8638435,609.09,607.65,1.21792817]
[1740889920395,1.71586352,609.03,607.65,1.21792817]
[1740889922590,1.2208779,609.02,607.67,1.21792817]
[1740889922994,2.86384551,609.02,607.67,1.21792817]
[1740889923192,1.2208779,609.01,607.68,1.71596223]
[1740889923696,1.64296761,609.02,607.68,1.71596223]
[1740889923697,1.2208779,609.0,607.68,1.71596223]
[1740889924795,1.2208779,608.99,607.68,1.71596223]
[1740889925695,1.2208779,609.01,607.78,1.21792817]
[1740889925896,5.49274104,609.01,607.78,1.21792817]
[1740889926098,1.64296761,609.0,607.78,1.21792817]
[1740889926291,1.231,609.0,607.78,1.21792817]
[1740889926496,2.86384551,608.99,607.78,1.21792817]
[1740889926697,4.27204113,608.98,607.78,1.21792817]
[1740889926898,4.27204113,608.97,607.78,1.21792817]
[1740889927099,4.27257559,608.96,607.78,1.21792817]
[1740889927300,1.6432983,608.95,607.78,1.21792817]
[1740889927500,1.6432983,608.94,607.78,1.21792817]
[1740889927801,1.6432983,608.93,607.63,1.21792817]
[1740889927999,1.6432983,608.95,607.63,1.21792817]
[1740889928201,1.2208779,608.93,607.63,1.21792817]
[1740889928698,1.2208779,608.92,607.63,1.21792817]
[1740889929295,1.231,609.0,607.63,1.21792817]
[1740889929296,2.93699527,608.91,607.63,1.21792817]
[1740889929796,1.71611737,608.91,607.63,1.21792817]
[1740889930197,1.71611737,608.91,607.72,1.21792817]
[1740889931998,1.231,609.0,607.72,1.21792817]
[1740889932196,1.231,609.0,607.74,0.32908809]
[1740889932197,1.71596223,608.92,607.74,0.32908809]
[1740889932394,1.71596223,608.92,607.95,1.21792817]
[1740889932599,1.231,609.0,607.97,0.3289636]
[1740889932796,1.71579302,608.92,607.97,0.3289636]
[1740889932998,1.231,609.0,607.97,0.3289636]
[1740889933202,1.71579302,608.92,607.97,0.3289636]
[1740889933603,1.231,609.0,607.97,0.3289636]
[1740889933798,1.71589172,608.91,607.97,0.3289636]
[1740889934001,1.64321301,608.99,607.97,0.3289636]
[1740889934199,1.64321301,608.99,607.97,1.54689177]
[1740889934704,1.231,609.0,607.97,1.54689177]
[1740889935004,1.21438992,608.99,607.97,1.54689177]
[1740889935205,4.57345235,608.99,607.97,1.54689177]
[1740889935504,1.64321301,608.98,607.97,1.54689177]
[1740889935704,2.85760293,608.98,607.97,1.54689177]
[1740889936803,2.85760293,608.98,607.97,0.3289636]
[1740889937004,1.21438992,608.97,607.97,0.3289636]
[1740889937305,1.64321301,608.96,607.97,0.3289636]
[1740889937505,1.21438992,608.97,607.97,0.3289636]
[1740889937506,1.64321301,608.95,607.97,0.3289636]
[1740889937706,1.64321301,608.94,607.97,0.3289636]
[1740889937906,1.64321301,608.93,607.97,0.3289636]
[1740889938201,1.21438992,608.95,607.97,0.3289636]
[1740889938406,1.64346967,608.94,607.97,0.3289636]
[1740889938608,1.21438992,608.92,607.97,0.3289636]
[1740889938807,1.64346967,608.91,607.97,0.3289636]
[1740889939006,1.64346967,608.9,607.97,0.3289636]
[1740889939202,1.64346967,608.89,607.97,0.3289636]
[1740889939404,2.62955147,608.91,607.97,0.3289636]
[1740889939405,1.64346967,608.88,607.97,0.3289636]
[1740889939605,4.27302114,608.89,607.97,0.3289636]
[1740889939801,4.27302114,608.88,607.97,0.3289636]
[1740889940002,4.27302114,608.87,607.97,0.3289636]
[1740889940207,4.27302114,608.86,607.97,0.3289636]
[1740889940410,1.64346967,608.85,607.97,0.3289636]
[1740889940606,3.1577236,608.88,607.97,0.3289636]
[1740889940607,1.64346967,608.87,607.97,0.3289636]
[1740889940903,1.21438992,608.84,607.97,0.3289636]
[1740889941403,1.71610326,608.83,607.97,0.3289636]
[1740889943008,3.1577236,608.94,607.97,0.3289636]
[1740889943209,1.71599043,608.89,607.97,0.3289636]
[1740889944009,1.21438992,608.97,607.97,0.3289636]
[1740889944207,1.71588467,608.89,607.97,0.3289636]
[1740889944509,1.64309084,608.96,607.97,0.3289636]
[1740889944709,1.71588467,608.89,607.97,0.3289636]
[1740889945903,1.71588467,608.89,608.07,1.21792817]
[1740889946112,1.71588467,608.89,608.09,0.32889868]
[1740889946410,1.21438992,608.94,608.09,0.32889868]
[1740889947511,1.21438992,608.95,608.09,0.32889868]
[1740889948213,1.71572958,608.96,608.09,0.32889868]
[1740889948912,1.21438992,608.95,608.09,0.32889868]
[1740889949307,2.85743094,608.95,608.09,0.32889868]
[1740889949510,1.21438992,608.95,608.09,0.32889868]
[1740889949710,1.21438992,608.94,608.09,0.32889868]
[1740889950409,2.93018999,608.93,608.09,0.32889868]
[1740889951115,1.71580007,608.93,608.09,0.32889868]
[1740889953014,1.64295545,608.95,608.09,0.32889868]
[1740889953214,1.64299852,608.95,608.09,0.32889868]
[1740889953410,2.93015474,608.96,608.09,0.32889868]
[1740889953912,1.64302747,608.95,608.09,0.32889868]
[1740889954218,2.93015474,608.96,608.09,0.32889868]
[1740889955317,1.64302088,608.95,608.09,0.32889868]
[1740889955517,1.64302088,608.94,608.09,0.32889868]
[1740889956122,1.21438992,608.95,608.09,0.32889868]
[1740889956420,1.21438992,608.93,608.09,0.32889868]
[1740889956620,2.8574108,608.93,608.09,0.32889868]
[1740889956820,2.8574108,608.92,608.09,0.32889868]
[1740889957012,1.21438992,608.92,608.09,0.32889868]
[1740889957415,1.64297342,608.91,608.09,0.32889868]
[1740889957619,2.85736334,608.91,608.09,0.32889868]
[1740889957920,1.21438992,608.91,608.09,0.32889868]
[1740889958118,1.95438159,608.95,608.09,0.32889868]
[1740889958119,1.21438992,608.9,608.09,0.32889868]
[1740889958716,2.85738328,608.89,608.09,0.32889868]
[1740889958913,1.21438992,608.89,608.09,0.32889868]
[1740889959219,1.64300607,608.88,608.09,0.32889868]
[1740889959421,1.64300607,608.87,608.09,0.32889868]
[1740889959614,1.64300607,608.86,608.09,0.32889868]
[1740889959818,1.6430322,608.85,608.09,0.32889868]
[1740889960118,1.21438992,608.85,608.09,0.32889868]
[1740889960917,1.21438992,608.84,608.09,0.32889868]
[1740889961315,1.21438992,608.83,608.09,0.32889868]
[1740889962417,1.21438992,608.82,608.09,0.32889868]
[1740889962917,1.21438992,608.81,608.09,0.32889868]
[1740889963724,1.95438159,608.89,608.09,0.32889868]
[1740889963921,1.64296276,608.88,608.09,0.32889868]
[1740889964121,1.64296276,608.87,608.09,0.32889868]
[1740889964422,1.64296276,608.86,608.09,0.32889868]
[1740889964721,1.64296276,608.85,608.09,0.32889868]
[1740889964920,1.64296276,608.84,608.09,0.32889868]
[1740889965119,1.2234788,608.84,608.09,0.32889868]
[1740889965718,1.2234788,608.83,608.09,0.32889868]
[1740889966316,1.2234788,608.82,608.09,0.32889868]
[1740889966821,1.2234788,608.81,608.09,0.32889868]
[1740889967022,1.2234788,608.8,608.09,0.32889868]
[1740889967416,1.71587057,608.99,608.09,0.32889868]
[1740889967417,2.5844788,608.79,608.09,0.32889868]
[1740889968015,1.361,608.79,608.09,0.32889868]
[1740889979525,1.361,608.79,608.18,1.21792817]
[1740889979827,1.361,608.79,608.19,0.3288446]
[1740889981629,1.64274899,608.93,608.19,0.3288446]
[1740889981822,1.64274899,608.92,608.2,1.21792817]
[1740889982026,1.64274899,608.91,608.21,0.32883379]
[1740889982228,1.64274899,608.9,608.21,0.32883379]
[1740889982427,1.22409971,608.92,608.21,0.32883379]
[1740889982628,1.434,608.89,608.21,0.32883379]
[1740889983329,1.22409971,608.88,608.21,0.32883379]
[1740889984122,1.434,608.89,608.21,0.32883379]
[1740889985424,1.434,608.89,608.26,1.21792817]
[1740889985628,1.434,608.89,608.27,0.32880135]
[1740889990431,1.434,608.89,608.28,1.21792817]
[1740889990625,1.434,608.89,608.29,0.32879054]
[1740889995831,1.64255343,609.06,608.29,0.32879054]
[1740889996027,1.64255343,609.05,608.29,0.32879054]
[1740889996233,1.64255343,609.04,608.29,0.32879054]
[1740889996432,1.64255343,609.03,608.29,0.32879054]
[1740889996633,1.64255343,609.02,608.29,0.32879054]
[1740889996831,1.64255343,609.01,608.29,0.32879054]
[1740889997029,1.64255343,609.0,608.29,0.32879054]
[1740889997229,1.64255343,608.99,608.29,0.32879054]
[1740889997431,1.64255343,608.98,608.29,0.32879054]
[1740889997734,1.64255343,608.97,608.29,0.32879054]
[1740889997932,1.2228557,608.99,608.29,0.32879054]
[1740889998125,1.6426237,608.98,608.29,0.32879054]
[1740889998331,1.2228557,608.99,608.29,0.32879054]
[1740889998531,1.2228557,608.97,608.29,0.32879054]
[1740889999032,1.2228557,608.96,608.29,0.32879054]
[1740889999831,1.2228557,608.95,608.29,0.32879054]
[1740890000932,1.2228557,608.94,608.29,0.32879054]
[1740890001733,1.345,609.02,608.29,0.32879054]
[1740890001932,1.64254827,609.01,608.29,0.32879054]
[1740890002134,1.64254827,609.0,608.29,0.32879054]
[1740890002336,1.64254827,608.99,608.29,0.32879054]
[1740890002635,1.64254827,608.98,608.29,0.32879054]
[1740890002835,1.64254827,608.97,608.29,0.32879054]
[1740890003041,1.22391866,608.97,608.29,0.32879054]
[1740890004036,1.22391866,608.96,608.29,0.32879054]
[1740890004835,1.22391866,608.95,608.29,0.32879054]
[1740890005642,1.345,609.02,608.29,0.32879054]
[1740890005845,1.64254118,609.01,608.29,0.32879054]
[1740890006036,1.64254118,609.0,608.29,0.32879054]
[1740890006343,1.22410129,609.01,608.29,0.32879054]
[1740890006539,1.64254118,609.0,608.29,0.32879054]
[1740890006743,1.22410129,609.01,608.29,0.32879054]
[1740890007038,1.64253345,609.0,608.29,0.32879054]
[1740890007344,1.22410129,609.0,608.29,0.32879054]
[1740890007544,1.22410129,608.99,608.29,0.32879054]
[1740890008542,1.22410129,608.98,608.29,0.32879054]
[1740890009343,1.345,609.02,608.29,0.32879054]
[1740890009947,1.22391504,609.01,608.29,0.32879054]
[1740890010647,1.22391504,609.0,608.29,0.32879054]
[1740890011051,1.22391504,608.99,608.29,0.32879054]
[1740890011945,1.345,609.02,608.29,0.32879054]
[1740890016658,1.345,609.02,608.35,1.21792817]
[1740890016858,1.345,609.02,608.36,0.32875271]
[1740890026069,1.22247935,609.01,608.36,0.32875271]
[1740890026670,1.345,609.02,608.36,0.32875271]
[1740890028368,1.22257641,609.01,608.36,0.32875271]
[1740890028770,1.22257641,609.0,608.36,0.32875271]
[1740890029368,1.22257641,608.99,608.36,0.32875271]
[1740890029771,1.64269903,608.98,608.36,0.32875271]
[1740890029970,1.64270327,608.97,608.36,0.32875271]
[1740890030170,1.22257641,608.97,608.36,0.32875271]
[1740890030671,1.22257641,608.96,608.36,0.32875271]
[1740890031370,1.22257641,608.95,608.36,0.32875271]
[1740890032071,1.22257641,608.94,608.36,0.32875271]
[1740890033268,1.22257641,608.93,608.36,0.32875271]
[1740890034169,1.345,609.02,608.36,0.32875271]
[1740890034170,1.22257641,608.92,608.36,0.32875271]
[1740890034974,1.22257641,608.91,608.36,0.32875271]
[1740890035474,1.22257641,608.9,608.36,0.32875271]
[1740890035872,1.22257641,608.89,608.36,0.32875271]
[1740890036875,1.71594108,609.01,608.36,0.32875271]
[1740890036876,1.22257641,608.88,608.36,0.32875271]
[1740890037376,1.22257641,608.87,608.36,0.32875271]
[1740890038372,1.6427563,608.94,608.36,0.32875271]
[1740890038572,1.6427563,608.93,608.36,0.32875271]
[1740890038774,1.71597633,609.01,608.36,0.32875271]
[1740890038971,1.22352568,608.92,608.36,0.32875271]
[1740890039872,1.22352568,608.91,608.36,0.32875271]
[1740890040776,1.22352568,608.9,608.36,0.32875271]
[1740890041777,1.345,609.02,608.36,0.32875271]
[1740890042077,1.64262059,609.01,608.36,0.32875271]
[1740890042275,1.64262059,609.0,608.36,0.32875271]
[1740890042475,3.18111669,609.01,608.36,0.32875271]
[1740890042671,4.82377051,609.0,608.36,0.32875271]
[1740890042870,3.18111669,609.0,608.36,0.32875271]
[1740890043577,1.22350642,608.99,608.36,0.32875271]
[1740890044076,1.22350642,608.98,608.36,0.32875271]
[1740890045076,1.22350642,608.97,608.36,0.32875271]
[1740890045680,1.345,609.02,608.36,0.32875271]
[1740890046176,1.22358,609.01,608.36,0.32875271]
[1740890046880,1.22358,609.0,608.36,0.32875271]
[1740890047675,1.22358,608.99,608.36,0.32875271]
[1740890048381,1.345,609.02,608.36,0.32875271]
[1740890048577,1.64261433,609.01,608.36,0.32875271]
[1740890048777,1.345,609.02,608.36,0.32875271]
[1740890049180,1.22365666,609.01,608.36,0.32875271]
[1740890049584,1.64260809,609.0,608.36,0.32875271]
[1740890049780,1.64260809,608.99,608.36,0.32875271]
[1740890049976,1.22365666,609.0,608.36,0.32875271]
[1740890049977,1.64260809,608.98,608.36,0.32875271]
[1740890050181,1.64260809,608.97,608.36,0.32875271]
[1740890050378,1.22365666,609.0,608.36,0.32875271]
[1740890050579,1.64260647,608.99,608.36,0.32875271]
[1740890050785,1.22365666,608.96,608.36,0.32875271]
[1740890051384,1.22365666,608.95,608.36,0.32875271]
[1740890051684,1.22365666,608.94,608.36,0.32875271]
[1740890052481,1.22365666,608.93,608.36,0.32875271]
[1740890052982,1.711,608.98,608.36,0.32875271]
[1740890053184,1.64261628,608.97,608.36,0.32875271]
[1740890053380,1.711,608.98,608.36,0.32875271]
[1740890053786,1.22367335,608.97,608.36,0.32875271]
[1740890054686,1.22367335,608.96,608.36,0.32875271]
[1740890055185,1.22367335,608.95,608.36,0.32875271]
[1740890055686,1.711,608.98,608.36,0.32875271]
[1740890056487,1.22367378,608.97,608.36,0.32875271]
[1740890057089,1.22367378,608.96,608.36,0.32875271]
[1740890057984,1.711,608.98,608.36,0.32875271]
[1740890064990,1.64225789,609.11,608.36,0.32875271]
[1740890065190,1.22327238,609.12,608.36,0.32875271]
[1740890065390,1.64224082,609.11,608.36,0.32875271]
[1740890065694,1.22327238,609.12,608.36,0.32875271]
[1740890065889,1.22327238,609.1,608.36,0.32875271]
[1740890066290,1.339,609.09,608.36,0.32875271]
[1740890066494,2.56227238,609.09,608.36,0.32875271]
[1740890067498,1.22327238,609.08,608.36,0.32875271]
[1740890067692,1.339,609.09,608.36,0.32875271]
[1740890068898,1.339,609.09,608.5,1.21792817]
[1740890069097,1.339,609.09,608.51,0.32867167]
[1740890074004,1.339,609.09,608.51,1.54659984]
[1740890075704,1.339,609.09,608.51,0.32867167]
[1740890088316,1.6421869,609.23,608.51,0.32867167]
[1740890088512,1.6421869,609.22,608.51,0.32867167]
[1740890088712,1.6421869,609.21,608.51,0.32867167]
[1740890088916,1.6421869,609.2,608.51,0.32867167]
[1740890089117,1.6421869,609.19,608.51,0.32867167]
[1740890089317,1.6421869,609.18,608.51,0.32867167]
[1740890089510,1.6421869,609.17,608.51,0.32867167]
[1740890089711,1.22096939,609.18,608.51,0.32867167]
[1740890089910,1.64221934,609.17,608.51,0.32867167]
[1740890090113,1.22096939,609.18,608.51,0.32867167]
[1740890090319,1.64221161,609.17,608.51,0.32867167]
[1740890090520,1.22096939,609.18,608.51,0.32867167]
[1740890090718,1.22096939,609.16,608.51,0.32867167]
[1740890091316,1.22096939,609.15,608.51,0.32867167]
[1740890092114,1.22096939,609.14,608.51,0.32867167]
[1740890092516,1.499,609.19,608.51,0.32867167]
[1740890092716,1.64219899,609.18,608.51,0.32867167]
[1740890092913,1.64219899,609.17,608.51,0.32867167]
[1740890093113,1.499,609.19,608.51,0.32867167]
[1740890093313,1.64220711,609.18,608.51,0.32867167]
[1740890093513,1.22121313,609.16,608.51,0.32867167]
[1740890093715,1.22121313,609.17,608.51,0.32867167]
[1740890094313,1.22121313,609.16,608.51,0.32867167]
[1740890094920,1.22121313,609.15,608.51,0.32867167]
[1740890095819,1.499,609.19,608.51,0.32867167]
[1740890096815,1.22149977,609.18,608.51,0.32867167]
[1740890097215,1.22149977,609.17,608.51,0.32867167]
[1740890097714,1.22149977,609.16,608.51,0.32867167]
[1740890098717,1.22149977,609.15,608.51,0.32867167]
[1740890099622,1.22149977,609.14,608.51,0.32867167]
[1740890100124,1.22149977,609.13,608.51,0.32867167]
[1740890101024,1.64225946,609.12,608.51,0.32867167]
[1740890101227,1.64225946,609.11,608.51,0.32867167]
[1740890101418,1.64225946,609.1,608.51,0.32867167]
[1740890101724,1.64225946,609.09,608.51,0.32867167]
[1740890102023,1.64225946,609.08,608.51,0.32867167]
[1740890102218,1.64225946,609.07,608.51,0.32867167]
[1740890102427,1.64225946,609.06,608.51,0.32867167]
[1740890102620,1.64248908,609.05,608.51,0.32867167]
[1740890102822,1.22149977,609.05,608.51,0.32867167]
[1740890103219,1.22149977,609.04,608.51,0.32867167]
[1740890103820,1.22149977,609.03,608.51,0.32867167]
[1740890104425,1.22149977,609.02,608.51,0.32867167]
[1740890105225,1.22149977,609.01,608.51,0.32867167]
[1740890105828,1.22149977,609.0,608.51,0.32867167]
[1740890106526,1.22149977,608.99,608.51,0.32867167]
[1740890107027,1.95607819,609.09,608.51,0.32867167]
[1740890107229,1.64250631,609.08,608.51,0.32867167]
[1740890107529,1.64250631,609.07,608.51,0.32867167]
[1740890107732,1.64250631,609.06,608.51,0.32867167]
[1740890108029,1.64250631,609.05,608.51,0.32867167]
[1740890108223,1.64248808,609.04,608.51,0.32867167]
[1740890108425,1.64251313,609.03,608.51,0.32867167]
[1740890108629,1.64252017,609.02,608.51,0.32867167]
[1740890108828,1.22258084,609.04,608.51,0.32867167]
[1740890109032,2.86510067,609.03,608.51,0.32867167]
[1740890109231,1.22258084,609.03,608.51,0.32867167]
[1740890109529,1.22258084,609.02,608.51,0.32867167]
[1740890110229,1.22258084,609.01,608.51,0.32867167]
[1740890110823,1.64250588,609.07,608.51,0.32867167]
[1740890111028,1.64250588,609.06,608.51,0.32867167]
[1740890111226,1.64250588,609.05,608.51,0.32867167]
[1740890111428,1.64250588,609.04,608.51,0.32867167]
[1740890111624,1.22283333,609.05,608.51,0.32867167]
[1740890111827,1.64252454,609.04,608.51,0.32867167]
[1740890112031,1.22283333,609.05,608.51,0.32867167]
[1740890112233,1.22283333,609.03,608.51,0.32867167]
[1740890112528,1.64252614,609.02,608.51,0.32867167]
[1740890112731,1.64252614,609.01,608.51,0.32867167]
[1740890112934,1.64252614,609.0,608.51,0.32867167]
[1740890113133,1.22283333,609.01,608.51,0.32867167]
[1740890113332,1.64263372,609.0,608.51,0.32867167]
[1740890113532,1.22283333,609.01,608.51,0.32867167]
[1740890113733,1.22283333,608.99,608.51,0.32867167]
[1740890114734,1.64254467,609.08,608.51,0.32867167]
[1740890114735,1.64254467,609.07,608.51,0.32867167]
[1740890115029,1.64254467,609.06,608.51,0.32867167]
[1740890115237,1.64254467,609.05,608.51,0.32867167]
[1740890115534,1.64254467,609.04,608.51,0.32867167]
[1740890115734,1.64254467,609.03,608.51,0.32867167]
[1740890115929,2.8654124,609.02,608.51,0.32867167]
[1740890116133,1.22286773,609.02,608.51,0.32867167]
[1740890116438,1.22286773,609.01,608.51,0.32867167]
[1740890116734,2.76686773,609.01,608.51,0.32867167]
[1740890117235,1.544,609.01,608.51,0.32867167]
[1740890118635,1.22273519,609.0,608.51,0.32867167]
[1740890119232,1.544,609.01,608.51,0.32867167]
[1740890128940,1.64224264,609.15,608.51,0.32867167]
[1740890129140,1.64224264,609.14,608.51,0.32867167]
[1740890129440,1.64224264,609.13,608.51,0.32867167]
[1740890129636,1.64224264,609.12,608.51,0.32867167]
[1740890129841,1.64225096,609.11,608.51,0.32867167]
[1740890130034,1.656,609.12,608.51,0.32867167]
[1740890130238,1.64224554,609.11,608.51,0.32867167]
[1740890130434,1.656,609.12,608.51,0.32867167]
[1740890130738,1.22267687,609.1,608.51,0.32867167]
[1740890131441,1.656,609.12,608.51,0.32867167]
[1740890132142,1.22281919,609.11,608.51,0.32867167]
[1740890132835,1.656,609.12,608.51,0.32867167]
[1740890132836,1.22281919,609.1,608.51,0.32867167]
[1740890134039,1.656,609.12,608.51,0.32867167]
[1740890134239,1.642355,609.11,608.51,0.32867167]
[1740890134443,1.642355,609.1,608.51,0.32867167]
[1740890134640,1.642355,609.09,608.51,0.32867167]
[1740890134841,1.642355,609.08,608.51,0.32867167]
[1740890135037,1.642355,609.07,608.51,0.32867167]
[1740890135239,1.642355,609.06,608.51,0.32867167]
[1740890135438,3.18071692,609.09,608.51,0.32867167]
[1740890135641,1.22356183,609.06,608.51,0.32867167]
[1740890136042,2.86601324,609.05,608.51,0.32867167]
[1740890136244,1.22356183,609.05,608.51,0.32867167]
[1740890136642,1.22356183,609.04,608.51,0.32867167]
[1740890137749,2.86601385,609.03,608.51,0.32867167]
[1740890137949,1.22356183,609.03,608.51,0.32867167]
[1740890138148,1.64246281,609.02,608.51,0.32867167]
[1740890138348,1.22356183,609.03,608.51,0.32867167]
[1740890138649,1.64246281,609.02,608.51,0.32867167]
[1740890138851,1.64246281,609.01,608.51,0.32867167]
[1740890139046,1.64246281,609.0,608.51,0.32867167]
[1740890139248,1.64246281,608.99,608.51,0.32867167]
[1740890139451,1.64246281,608.98,608.51,0.32867167]
[1740890139652,1.64246281,608.97,608.51,0.32867167]
[1740890139953,1.64246281,608.96,608.51,0.32867167]
[1740890140152,1.64246281,608.95,608.51,0.32867167]
[1740890140349,1.64246281,608.94,608.51,0.32867167]
[1740890140651,1.64246281,608.93,608.51,0.32867167]
[1740890140849,1.64246281,608.92,608.51,0.32867167]
[1740890141049,3.18329294,608.95,608.51,0.32867167]
[1740890141249,1.22356183,608.91,608.51,0.32867167]
[1740890145456,1.22356183,608.9,608.51,0.32867167]
[1740890146056,1.22356183,608.89,608.51,0.32867167]
[1740890146851,2.62827743,609.03,608.51,0.32867167]
[1740890147051,4.27093861,609.02,608.51,0.32867167]
[1740890147254,4.27091907,609.01,608.51,0.32867167]
[1740890147452,4.27091907,609.0,608.51,0.32867167]
[1740890147654,1.64266118,608.99,608.51,0.32867167]
[1740890147854,1.64266118,608.98,608.51,0.32867167]
[1740890148156,1.656,609.12,608.51,0.32867167]
[1740890148157,1.64266118,608.97,608.51,0.32867167]
[1740890148352,1.22438707,608.99,608.51,0.32867167]
[1740890148550,1.64266817,608.98,608.51,0.32867167]
[1740890148753,1.64266817,608.97,608.51,0.32867167]
[1740890148956,1.22438707,608.98,608.51,0.32867167]
[1740890149152,1.64266817,608.97,608.51,0.32867167]
[1740890149354,1.22438707,608.98,608.51,0.32867167]
[1740890149557,1.64266279,608.97,608.51,0.32867167]
[1740890149757,1.22438707,608.97,608.51,0.32867167]
[1740890150352,1.22438707,608.96,608.51,0.32867167]
[1740890150954,1.22438707,608.95,608.51,0.32867167]
[1740890152057,1.95878805,609.01,608.51,0.32867167]
[1740890152358,4.82567103,609.0,608.51,0.32867167]
[1740890152551,1.6426564,608.99,608.51,0.32867167]
[1740890152752,1.6426564,608.98,608.51,0.32867167]
[1740890152954,1.22422658,608.99,608.51,0.32867167]
[1740890153154,1.6426564,608.98,608.51,0.32867167]
[1740890153358,1.22422658,608.99,608.51,0.32867167]
[1740890153557,1.64264865,608.98,608.51,0.32867167]
[1740890153857,1.22422658,608.98,608.51,0.32867167]
[1740890154058,1.22422658,608.97,608.51,0.32867167]
[1740890154752,2.86689503,608.96,608.51,0.32867167]
[1740890154959,1.64266845,608.95,608.51,0.32867167]
[1740890155256,1.64266845,608.94,608.51,0.32867167]
[1740890155458,1.64266845,608.93,608.51,0.32867167]
[1740890155658,3.18291535,608.96,608.51,0.32867167]
[1740890155854,1.64266845,608.95,608.51,0.32867167]
[1740890156053,1.22422658,608.92,608.51,0.32867167]
[1740890156754,1.22422658,608.91,608.51,0.32867167]
[1740890157058,1.22422658,608.9,608.51,0.32867167]
[1740890157459,1.22422658,608.89,608.51,0.32867167]
[1740890157862,2.62824516,608.99,608.51,0.32867167]
[1740890158158,4.27091689,608.98,608.51,0.32867167]
[1740890158360,4.27091689,608.97,608.51,0.32867167]
[1740890158560,1.64266034,608.96,608.51,0.32867167]
[1740890158757,1.64266034,608.95,608.51,0.32867167]
[1740890158955,1.64266034,608.94,608.51,0.32867167]
[1740890159158,1.64266034,608.93,608.51,0.32867167]
[1740890159356,1.64265873,608.92,608.51,0.32867167]
[1740890159559,1.22442686,608.94,608.51,0.32867167]
[1740890159760,1.22442686,608.91,608.51,0.32867167]
[1740890160555,1.22442686,608.9,608.51,0.32867167]
[1740890161163,1.64275238,608.89,608.51,0.32867167]
[1740890161359,1.64275238,608.88,608.51,0.32867167]
[1740890161566,1.64275238,608.87,608.51,0.32867167]
[1740890161864,2.86717924,608.86,608.51,0.32867167]
[1740890162061,1.64275238,608.85,608.51,0.32867167]
[1740890162261,1.22442686,608.86,608.51,0.32867167]
[1740890162558,1.22442686,608.84,608.51,0.32867167]
[1740890162863,1.64288225,608.83,608.51,0.32867167]
[1740890163063,1.22442686,608.84,608.51,0.32867167]
[1740890163468,1.22442686,608.83,608.51,0.32867167]
[1740890164358,1.22442686,608.82,608.51,0.32867167]
[1740890164863,1.22442686,608.81,608.51,0.32867167]
[1740890165263,1.71568023,608.91,608.51,0.32867167]
[1740890165463,1.6430134,608.9,608.51,0.32867167]
[1740890165663,1.6430134,608.89,608.51,0.32867167]
[1740890165964,2.86664853,608.88,608.51,0.32867167]
[1740890166161,1.6430134,608.87,608.51,0.32867167]
[1740890166359,1.6430134,608.86,608.51,0.32867167]
[1740890166557,1.22363513,608.87,608.51,0.32867167]
[1740890166767,1.64300171,608.86,608.51,0.32867167]
[1740890166964,1.22363513,608.87,608.51,0.32867167]
[1740890167158,1.36,608.85,608.51,0.32867167]
[1740890168464,1.22363513,608.84,608.51,0.32867167]
[1740890168859,1.22363513,608.83,608.51,0.32867167]
[1740890169658,1.36,608.85,608.51,0.32867167]
[1740890170062,1.64300276,608.84,608.51,0.32867167]
[1740890170262,1.36,608.85,608.51,0.32867167]
[1740890172163,1.22261817,608.84,608.51,0.32867167]
[1740890172868,1.36,608.85,608.51,0.32867167]